bitfinex/quotes_ETHUSD_20250602
["timestamp","ask_amount","ask_price","bid_price","bid_amount"]
[1748906831604,5.97597961,2601.9,2601.2,3.84432837]
[1748906831815,5.97597961,2601.9,2601.8,3.84349296]
[1748906832591,5.97597961,2601.9,2601.7,3.84361987]
[1748906832797,5.97597961,2601.9,2601.8,3.84349296]
[1748906834063,5.96097961,2601.9,2601.8,3.84349296]
[1748906834458,5.95897961,2601.9,2601.8,3.84349296]
[1748906835876,5.95597961,2601.9,2601.8,3.84349296]
[1748906836204,1.63297961,2601.9,2601.8,3.84349296]
[1748906836387,5.95397961,2601.9,2601.7,3.84357207]
[1748906836563,6.54937757,2601.9,2601.8,3.84349296]
[1748906837199,6.54937757,2601.9,2601.7,3.84358521]
[1748906837706,6.54937757,2601.9,2601.8,3.84349296]
[1748906837869,5.95397961,2601.9,2601.8,3.84349296]
[1748906838205,5.94697961,2601.9,2601.8,3.84349296]
[1748906838364,0.35897961,2601.9,2601.8,3.84349296]
[1748906838565,5.94497961,2601.9,2601.8,3.84349296]
[1748906838803,0.35897961,2601.9,2601.8,3.84349296]
[1748906838960,0.35897961,2601.9,2601.1,7.57481728]
[1748906838961,0.8013,2601.8,2601.2,8.0]
[1748906839159,5.2287,2601.2,2600.1,0.02]
[1748906839403,0.8013,2600.2,2598.6,0.2007321]
[1748906839575,10.91342729,2601.1,2598.6,0.2007321]
[1748906839774,4.573,2601.0,2599.8,3.84644788]
[1748906839974,0.81876714,2601.9,2599.9,3.84630178]
[1748906840182,0.7535,2601.6,2600.0,6.63233543]
[1748906840392,1.07319585,2601.6,2600.1,3.84600592]
[1748906840612,0.59805571,2601.5,2599.9,4.573]
[1748906840800,5.16905571,2601.5,2600.8,3.8449338]
[1748906840965,1.42422516,2601.4,2599.7,15.04985542]
[1748906841179,0.04805864,2601.3,2600.7,3.84510812]
[1748906841400,0.04805864,2601.3,2600.6,3.84522651]
[1748906841704,0.55,2601.3,2600.7,3.84511422]
[1748906841911,0.55,2601.3,2600.7,3.82511422]
[1748906841912,0.02,2600.9,2600.7,3.82511422]
[1748906842114,0.02,2600.9,2600.7,3.84509309]
[1748906842315,0.02,2600.9,2600.8,3.84497077]
[1748906842914,0.02,2600.9,2600.6,3.84524174]
[1748906843083,0.02,2600.9,2600.1,3.84591806]
[1748906843412,0.02,2600.9,2600.7,3.84511538]
[1748906844706,0.02,2600.9,2600.6,3.84522908]
[1748906844906,0.02,2600.9,2600.1,3.84591806]
[1748906845129,0.02,2600.9,2600.6,3.84521015]
[1748906845287,0.02,2600.9,2600.5,3.84541434]
[1748906845472,0.02,2600.9,2600.7,3.84511365]
[1748906848490,0.02,2600.9,2600.6,3.84516528]
[1748906848716,0.02,2600.9,2600.7,3.84503148]
[1748906848916,0.02,2600.9,2600.8,3.84497077]
[1748906849122,0.02,2600.9,2600.6,3.84526491]
[1748906849293,0.02,2600.9,2600.8,3.84497077]
[1748906852323,0.02,2600.9,2600.2,3.84575031]
[1748906852533,0.02,2600.9,2600.8,3.84497077]
[1748906864959,4.467,2600.9,2600.8,3.84497077]
[1748906865367,4.466,2600.9,2600.8,3.84497077]
[1748906865877,0.02,2600.9,2600.8,3.84497077]
[1748906874882,0.02,2600.9,2600.8,7.55538062]
[1748906877895,0.02,2600.9,2600.8,3.84497077]
[1748906889697,0.02,2600.9,2600.8,7.55538062]
[1748906895728,0.02,2600.9,2600.8,3.84497077]
[1748906899789,0.02,2600.9,2600.8,7.09565309]
[1748906901888,0.02,2600.9,2600.8,11.35606294]
[1748906903108,0.02,2600.9,2600.8,15.65706294]
[1748906905040,0.37897961,2601.9,2600.8,15.65706294]
[1748906905041,0.37897961,2601.9,2601.8,3.84349296]
[1748906906505,0.37897961,2601.9,2601.8,11.38717528]
[1748906906704,0.37897961,2601.9,2601.8,20.43889807]
[1748906909049,0.37897961,2601.9,2601.8,3.84349296]
[1748906909232,0.37897961,2601.9,2601.8,4.22748182]
[1748906909454,1.19327961,2601.9,2601.0,0.47005612]
[1748906909602,1.19327961,2601.9,2601.6,3.84378843]
[1748906909603,0.8143,2601.7,2601.6,3.84378843]
[1748906909803,0.8143,2601.7,2601.4,3.84394564]
[1748906909804,0.8143,2601.6,2601.4,3.84394564]
[1748906910006,0.86235121,2601.6,2601.5,3.84393619]
[1748906910247,0.8143,2601.6,2601.5,3.84393619]
[1748906910645,0.8143,2601.6,2601.4,3.84402415]
[1748906910940,1.34698474,2601.5,2601.4,3.84402415]
[1748906911572,1.29893487,2601.5,2601.4,3.84402415]
[1748906912058,0.7834,2601.5,2601.4,3.84402415]
[1748906916252,0.37897961,2601.9,2601.8,3.84349296]
[1748906917349,0.37897961,2601.9,2601.8,4.78023561]
[1748906917559,0.37897961,2601.9,2601.8,12.78023561]
[1748906918411,0.02,2602.9,2602.8,3.84201629]
[1748906920191,0.808,2602.9,2602.8,3.84201629]
[1748906923670,0.02,2602.9,2602.8,3.84201629]
[1748906924664,0.02,2602.9,2602.8,11.84201629]
[1748906924861,0.02,2602.9,2602.8,12.39201629]
[1748906926873,0.02,2602.9,2602.8,3.84201629]
[1748906928554,0.8316,2602.9,2602.8,3.84201629]
[1748906931004,0.02,2602.9,2602.8,3.84201629]
[1748906940071,0.02,2602.9,2602.8,7.55242614]
[1748906941201,0.02,2602.9,2602.8,26.9699126]
[1748906944656,0.02,2602.9,2602.8,26.9689126]
[1748906945449,0.02,2603.9,2602.8,19.41648646]
[1748906945761,0.47739581,2604.9,2602.8,19.41648646]
[1748906945762,0.02,2604.9,2604.8,3.83906633]
[1748906947314,0.02,2604.9,2604.7,6.61748646]
[1748906947515,0.02,2604.9,2604.8,3.83906633]
[1748906947757,0.00632,2604.9,2604.8,3.83906633]
[1748906951801,0.00632,2604.9,2604.8,4.21746357]
[1748906954650,0.00632,2604.9,2604.7,6.61748646]
[1748906955477,0.00632,2604.9,2604.8,3.83906633]
[1748906961563,0.00632,2604.9,2604.8,8.63506633]
[1748906961794,0.00632,2604.9,2604.8,20.34547618]
[1748906962153,0.02,2605.9,2605.8,3.83759306]
[1748906973209,0.04796395,2606.3,2606.2,3.83700406]
[1748906973410,0.02,2607.9,2606.8,11.852491]
[1748906973612,0.02,2607.9,2607.8,3.83464989]
[1748906973937,0.02,2607.9,2607.8,4.19147123]
[1748906976113,2.17188352,2608.1,2607.8,8.40818251]
[1748906976114,2.14188352,2608.1,2607.8,8.40818251]
[1748906976442,2.14188352,2608.1,2608.0,10.45184228]
[1748906976742,2.28517326,2608.8,2608.7,3.83332694]
[1748906976941,0.34579935,2608.9,2608.8,3.83318]
[1748906977239,0.34579935,2608.9,2608.8,4.18830492]
[1748906977407,0.34579935,2608.9,2608.8,10.80579138]
[1748906978244,0.34579935,2608.9,2608.8,19.35579138]
[1748906978443,0.34579935,2608.9,2608.8,20.68405771]
[1748906979338,0.34579935,2608.9,2608.8,20.92767476]
[1748906979711,0.34304166,2608.9,2608.8,4.18830492]
[1748906979911,0.34304166,2608.9,2608.8,3.8715035]
[1748906980605,0.34304166,2608.9,2608.8,3.83318]
[1748906983445,1.69282761,2608.9,2607.8,7.24390138]
[1748906983641,1.74073707,2608.9,2608.8,3.83318]
[1748906983944,1.74073707,2608.9,2608.7,3.83327767]
[1748906984244,1.69282761,2608.9,2608.8,3.83318]
[1748906985440,1.69282761,2608.9,2608.7,3.83320776]
[1748906985747,1.69282761,2608.9,2608.8,3.83318]
[1748906986141,9.69282761,2608.9,2608.4,3.83363923]
[1748906986343,0.04792007,2608.8,2608.4,3.83368218]
[1748906986561,4.33,2608.7,2608.3,3.83382286]
[1748906986763,0.7746,2608.5,2607.8,0.38279787]
[1748906986947,1.30592669,2608.4,2608.2,3.83393071]
[1748906987157,4.328,2608.3,2607.9,3.8344208]
[1748906987371,4.328,2608.3,2607.0,8.11910351]
[1748906987372,0.04792797,2608.2,2608.0,3.83427823]
[1748906987592,1.28506,2608.5,2608.3,3.83387464]
[1748906987760,5.585,2608.3,2608.1,3.83411245]
[1748906987949,6.1475,2608.2,2608.1,3.83411245]
[1748906988291,0.7746,2608.5,2607.8,3.8346103]
[1748906988488,0.7746,2608.5,2608.4,3.83376782]
[1748906988864,5.1036,2608.5,2608.4,3.83376782]
[1748906989789,5.1036,2608.5,2608.3,3.8338687]
[1748906989997,0.68408314,2608.4,2608.2,3.83404646]
[1748906990569,0.68408314,2608.4,2608.3,3.83391481]
[1748906990766,9.53465655,2608.8,2607.9,0.03834003]
[1748906990767,1.53465655,2608.8,2607.9,0.03834003]
[1748906991101,0.04792109,2608.7,2608.5,3.83356484]
[1748906991454,0.04792109,2608.7,2608.0,3.65971359]
[1748906991681,9.61287162,2608.7,2608.4,3.83368133]
[1748906991868,9.56495053,2608.7,2608.4,3.83368133]
[1748906992160,0.40724186,2608.6,2608.4,3.83368133]
[1748906992387,0.04792106,2608.6,2608.4,3.83368133]
[1748906992705,1.56495053,2608.7,2608.5,3.83362085]
[1748906992914,1.15788132,2608.6,2608.4,3.83376782]
[1748906994096,0.35931211,2608.5,2608.4,3.83376782]
[1748906996298,0.71862881,2608.5,2608.4,3.83376782]
[1748906996464,0.35931211,2608.5,2608.4,3.83376782]
[1748906996659,5.49993324,2608.5,2607.3,3.83538526]
[1748906996859,0.54999332,2608.4,2607.4,3.83523816]
[1748906997202,1.80799332,2608.4,2608.3,3.83391481]
[1748906997496,6.12199332,2608.4,2608.3,3.83391481]
[1748906998199,6.12199332,2608.4,2608.1,3.83420881]
[1748906998520,6.12199332,2608.4,2607.3,8.0]
[1748906998521,0.7743,2608.2,2607.2,3.83550198]
[1748906998675,0.04793698,2608.1,2607.7,3.83471811]
[1748906998878,4.321,2608.0,2607.8,3.83464736]
[1748906999080,0.4848287,2607.9,2607.7,3.83478546]
[1748906999680,8.4848287,2607.9,2607.6,3.83492253]
[1748906999884,0.8111,2607.8,2607.6,3.83492253]
[1748907000107,0.8111,2607.8,2607.0,0.38728912]
[1748907000284,0.04793685,2607.7,2607.2,3.83544995]
[1748907000464,5.574,2607.6,2607.3,3.8352944]
[1748907000664,0.04794237,2607.5,2607.4,3.83514018]
[1748907000967,1.258,2607.6,2607.5,3.83509108]
[1748907001186,0.8111,2607.8,2607.7,3.83479694]
[1748907001721,1.258,2608.2,2608.1,3.83412094]
[1748907001897,13.574,2608.2,2607.7,3.83479694]
[1748907002202,1.4053302,2608.1,2607.9,3.83449364]
[1748907002749,1.3574,2608.1,2608.0,3.83435582]
[1748907002908,0.8169,2608.4,2608.1,3.83408942]
[1748907003068,0.8169,2608.4,2608.3,3.83391481]
[1748907003274,6.3899,2608.4,2608.3,3.83391481]
[1748907003490,2.74982121,2608.4,2608.3,3.83391481]
[1748907003691,2.0749,2608.4,2608.3,3.83391481]
[1748907003899,6.3869,2608.4,2608.3,3.83391481]
[1748907004077,6.43482586,2608.4,2607.4,4.77]
[1748907004277,6.43482586,2608.4,2607.0,11.83571565]
[1748907004278,6.43482586,2608.4,2607.9,3.83450274]
[1748907004487,8.6794138,2608.3,2607.8,3.8345144]
[1748907004703,0.04792963,2608.2,2607.8,3.8345144]
[1748907004943,0.04792963,2608.2,2607.2,3.90706622]
[1748907005119,0.848,2608.1,2607.3,0.35684788]
[1748907005273,0.848,2607.8,2606.9,3.83591281]
[1748907005473,0.848,2607.8,2606.7,3.83626807]
[1748907005474,0.04794132,2607.7,2607.0,0.39540669]
[1748907005774,5.575,2607.6,2607.3,3.83530506]
[1748907006100,13.575,2607.6,2606.7,3.83626807]
[1748907006312,0.848,2607.6,2606.8,0.39536832]
[1748907006512,8.0,2607.4,2607.3,3.83536723]
[1748907006712,4.319,2607.4,2607.3,3.83536723]
[1748907007512,4.319,2607.4,2606.4,4.22771369]
[1748907007712,4.319,2607.4,2607.2,3.8354212]
[1748907007928,4.96599405,2607.4,2607.2,3.8354169]
[1748907008300,4.96599405,2607.4,2607.0,3.83569744]
[1748907008301,4.96599405,2607.4,2607.3,3.83538526]
[1748907008497,0.848,2607.6,2607.3,3.83538526]
[1748907008822,5.567,2607.5,2607.2,3.83548914]
[1748907009408,5.567,2607.5,2607.1,3.83562225]
[1748907009720,5.567,2607.5,2607.1,3.83565547]
[1748907009958,0.04794134,2607.4,2607.0,3.8357168]
[1748907010137,0.8501,2607.3,2606.6,0.03835572]
[1748907010298,0.8501,2607.3,2606.3,0.0716]
[1748907010299,0.04794796,2607.2,2606.7,0.35747951]
[1748907010495,4.308,2607.1,2606.1,3.85708265]
[1748907010702,0.89805211,2607.0,2606.2,0.35767198]
[1748907010898,2.1018,2607.3,2607.2,3.83553237]
[1748907011235,10.1018,2607.3,2607.2,3.83553237]
[1748907011642,10.1018,2607.3,2606.6,3.83631334]
[1748907011643,10.1018,2607.3,2607.1,3.83561089]
[1748907011949,0.04794602,2607.2,2606.8,3.8360202]
[1748907012151,1.49352062,2607.2,2606.8,3.83612091]
[1748907012357,1.49352062,2607.2,2606.6,3.8363302]
[1748907012520,0.8051,2607.1,2606.5,3.83650605]
[1748907012720,0.04795408,2607.0,2606.5,3.83650605]
[1748907012957,4.302,2606.9,2606.5,3.83650605]
[1748907013141,0.04795589,2606.8,2606.5,3.83650605]
[1748907013341,0.8051,2606.7,2606.4,3.83668306]
[1748907013743,0.04795774,2606.6,2606.4,3.83670919]
[1748907013943,1.256,2606.5,2606.4,3.83670919]
[1748907014151,1.256,2606.5,2606.2,3.83690771]
[1748907014349,4.299,2606.4,2606.2,3.83691701]
[1748907014535,6.3611,2606.7,2606.4,3.83661821]
[1748907015363,6.3611,2606.7,2606.1,0.02]
[1748907015661,6.3611,2606.7,2606.4,3.83662197]
[1748907015962,0.63611,2606.6,2606.5,3.83656244]
[1748907016261,0.8051,2606.5,2606.1,3.85706594]
[1748907016464,0.04796322,2606.4,2606.1,3.85706594]
[1748907016651,9.3551,2606.2,2606.1,0.02]
[1748907016849,14.84740632,2606.2,2606.1,3.85715129]
[1748907017160,13.1071,2606.2,2606.1,3.85715129]
[1748907017367,0.8051,2606.2,2606.1,3.85715129]
[1748907017565,5.1061,2606.2,2606.1,3.85715129]
[1748907018363,1.256,2606.3,2606.2,3.8369763]
[1748907018564,8.8381,2606.5,2606.4,3.83670963]
[1748907018871,0.8381,2606.5,2606.4,3.83670963]
[1748907019061,0.8381,2606.5,2606.1,0.02]
[1748907019268,0.8381,2606.5,2606.4,3.83670963]
[1748907019269,5.1371,2606.5,2606.4,3.83670963]
[1748907019427,0.8381,2606.5,2606.4,3.83670963]
[1748907019627,6.19346662,2606.5,2606.1,0.02]
[1748907020029,6.19346662,2606.5,2606.1,3.85713191]
[1748907020365,6.19346662,2606.5,2606.1,0.02]
[1748907020676,6.19346662,2606.5,2606.1,3.85705396]
[1748907020840,6.19346662,2606.5,2606.2,3.83697576]
[1748907021046,0.74494666,2606.4,2606.1,3.85709189]
[1748907021243,0.04796487,2606.3,2606.1,0.02]
[1748907021650,8.74494666,2606.4,2606.1,0.02]
[1748907022052,0.04796744,2606.3,2606.1,0.02]
[1748907022249,1.44086885,2606.3,2606.1,0.02]
[1748907022454,4.291,2606.2,2606.1,3.85707992]
[1748907022649,4.291,2606.2,2606.1,0.02]
[1748907022876,4.29,2606.2,2606.1,3.85703778]
[1748907023237,4.29,2606.2,2606.1,0.02]
[1748907023437,5.73278481,2606.2,2606.1,0.02]
[1748907024785,1.44278481,2606.2,2606.1,3.85715129]
[1748907024956,5.72678481,2606.2,2606.1,3.85715129]
[1748907025689,5.72678481,2606.2,2606.1,0.02]
[1748907025989,8.0,2606.4,2606.1,0.02]
[1748907025990,4.285,2606.4,2606.1,0.02]
[1748907026192,0.0479612,2606.3,2606.2,3.8368677]
[1748907026349,0.0479612,2606.3,2606.1,0.02]
[1748907026551,0.56506732,2606.3,2606.1,0.02]
[1748907027167,0.8103,2606.2,2606.1,0.02]
[1748907027594,0.8582705,2606.2,2606.1,0.02]
[1748907027795,6.3463,2606.2,2606.1,3.85715129]
[1748907028089,2.0663,2606.2,2606.1,0.02]
[1748907028297,0.85826769,2606.2,2606.1,0.02]
[1748907028501,1.256,2606.2,2606.1,3.85715129]
[1748907028792,9.256,2606.2,2606.1,3.85715129]
[1748907029590,1.256,2606.2,2606.1,3.85715129]
[1748907029760,5.537,2606.2,2606.1,3.85715129]
[1748907030995,0.8303,2606.5,2606.1,0.02]
[1748907031156,1.256,2606.4,2606.3,3.83685684]
[1748907031350,5.533,2606.4,2606.3,3.83685684]
[1748907031995,8.84,2606.8,2606.7,3.83626807]
[1748907032197,10.57528629,2606.8,2606.7,3.83626807]
[1748907032400,6.85328629,2606.8,2606.7,3.83626807]
[1748907032568,14.85328629,2606.8,2606.7,3.83626807]
[1748907033079,8.283,2606.9,2606.8,3.83612091]
[1748907033400,5.0988,2607.1,2606.9,3.83595928]
[1748907033563,8.0479484,2607.0,2606.2,3.83700406]
[1748907033897,8.0479484,2607.0,2606.8,3.83597832]
[1748907034097,9.36262324,2607.0,2606.8,3.83597832]
[1748907034261,9.31467484,2607.0,2606.8,3.83597832]
[1748907034598,9.31467484,2607.0,2606.7,3.83620149]
[1748907035014,9.31467484,2607.0,2606.1,0.145]
[1748907035189,0.04795347,2606.9,2606.5,3.83652927]
[1748907035389,4.277,2606.8,2606.5,3.83652927]
[1748907035766,9.4940963,2606.9,2606.5,3.83652927]
[1748907036102,0.8238,2607.1,2606.1,0.145]
[1748907036312,8.0,2606.9,2606.8,3.83612091]
[1748907036512,8.0,2606.9,2606.7,3.83626567]
[1748907036700,8.04794938,2606.9,2606.1,3.98205978]
[1748907037012,0.8041,2606.8,2606.2,3.83695313]
[1748907037185,0.04796059,2606.7,2606.1,3.85712359]
[1748907037389,0.04796059,2606.7,2606.1,0.02]
[1748907037390,8.8041,2606.5,2606.1,0.02]
[1748907037577,1.27896663,2606.4,2606.1,0.02]
[1748907037772,8.0,2606.3,2606.1,0.02]
[1748907038014,4.31896663,2606.2,2606.1,0.02]
[1748907038892,5.12306663,2606.2,2606.1,0.02]
[1748907039218,17.51007069,2606.2,2606.1,0.02]
[1748907039393,17.46210406,2606.2,2606.1,0.02]
[1748907039719,20.52364013,2606.2,2606.1,0.02]
[1748907041416,0.55,2605.6,2605.2,0.15]
[1748907041590,5.5429836,2605.5,2605.2,0.15]
[1748907041795,8.0,2605.4,2605.2,0.15]
[1748907042014,0.04798344,2605.3,2605.2,0.15]
[1748907042218,0.04798344,2605.3,2605.1,0.02]
[1748907042552,1.3952,2605.2,2605.1,0.02]
[1748907042727,0.04798344,2605.3,2605.1,0.165]
[1748907043020,0.04798501,2606.2,2606.1,3.83715129]
[1748907043221,2.33570666,2606.4,2605.6,0.145]
[1748907043222,0.04796294,2606.3,2605.6,0.145]
[1748907043521,4.32396294,2606.3,2605.8,3.83759306]
[1748907043715,0.51691629,2606.2,2606.0,3.83725463]
[1748907044119,0.51691629,2606.2,2606.1,3.83715129]
[1748907044895,0.04796294,2606.3,2606.2,3.83700406]
[1748907045307,5.55096294,2606.3,2606.2,3.83700406]
[1748907046117,5.54896294,2606.3,2606.2,3.83700406]
[1748907049156,0.04796294,2606.3,2606.2,3.83700406]
[1748907049450,5.53896294,2606.3,2606.2,3.83700406]
[1748907050850,6.17137923,2606.3,2606.2,3.83700406]
[1748907051640,6.17137923,2606.3,2606.1,3.83708602]
[1748907051851,14.59503022,2606.2,2605.3,0.145]
[1748907052019,0.04797217,2606.1,2605.5,3.83803492]
[1748907052219,8.8309,2605.9,2605.6,3.83778408]
[1748907052433,0.04797217,2605.8,2605.7,3.83774033]
[1748907052649,8.8309,2605.9,2605.7,3.83774033]
[1748907053621,0.04797192,2605.8,2605.5,3.83799697]
[1748907053856,0.04797192,2605.8,2605.1,0.02]
[1748907053857,8.55,2605.6,2605.1,0.05837996]
[1748907054028,0.8309,2605.3,2605.1,0.02]
[1748907054230,4.29898673,2605.2,2605.1,3.85859803]
[1748907054433,4.29898673,2605.2,2605.1,0.02]
[1748907054654,12.8119754,2605.2,2605.1,0.02]
[1748907054859,12.76398867,2605.2,2605.1,0.02]
[1748907055337,13.31398867,2605.2,2605.1,0.02]
[1748907059565,17.15246556,2605.2,2604.0,3.98520675]
[1748907059728,17.15246556,2605.2,2604.4,3.83955538]
[1748907059729,8.55,2605.0,2604.4,3.83955538]
[1748907060064,0.04799625,2604.9,2604.5,3.8394555]
[1748907060263,0.04799625,2604.9,2604.8,3.83906633]
[1748907060448,1.232,2605.8,2605.7,3.83774033]
[1748907060760,1.43652,2605.8,2605.7,3.83774033]
[1748907061392,4.252,2605.8,2605.7,3.83774033]
[1748907061895,5.484,2605.9,2605.8,3.83759306]
[1748907062071,0.81796808,2606.2,2606.0,3.83724698]
[1748907062270,1.232,2606.1,2606.0,3.83724698]
[1748907062470,5.484,2606.1,2605.9,3.8373547]
[1748907062666,5.484,2606.1,2606.0,3.83729854]
[1748907063194,0.77,2606.2,2605.4,0.0633]
[1748907063507,5.484,2606.1,2605.8,3.83757491]
[1748907063672,6.15736803,2606.1,2605.4,0.0633]
[1748907064001,6.15736803,2606.1,2605.8,3.83747268]
[1748907064794,8.0,2606.0,2604.6,8.0633]
[1748907065000,0.8036,2605.7,2604.6,0.0633]
[1748907065299,8.0,2605.5,2605.4,3.83818223]
[1748907065472,12.252,2605.6,2605.5,3.83803492]
[1748907066595,13.467,2605.6,2605.5,3.83803492]
[1748907068167,13.467,2605.6,2605.4,3.83811673]
[1748907068891,14.89406,2605.6,2605.4,3.83811673]
[1748907069063,13.467,2605.6,2605.4,3.83811673]
[1748907069402,13.467,2605.6,2604.7,3.83910617]
[1748907069586,8.04797851,2605.5,2604.6,4.8333]
[1748907069786,2.15149785,2605.4,2604.8,3.83903412]
[1748907069991,2.15149785,2605.4,2604.6,3.90255726]
[1748907069992,2.15149785,2605.4,2604.7,0.03838859]
[1748907070163,2.15149785,2605.4,2605.3,3.83832955]
[1748907070164,1.216,2605.4,2605.3,3.83832955]
[1748907070496,5.467,2605.4,2605.1,3.83857419]
[1748907070875,5.467,2605.4,2605.2,3.8384623]
[1748907071104,5.467,2605.4,2605.3,3.83832955]
[1748907071279,5.467,2605.4,2605.2,3.83843088]
[1748907072405,5.467,2605.4,2604.8,3.83906633]
[1748907072592,5.467,2605.4,2605.3,3.83832955]
[1748907072901,1.216,2605.4,2605.3,3.83832955]
[1748907073604,1.216,2605.4,2604.7,3.83910796]
[1748907073767,1.216,2605.4,2604.8,3.83906633]
[1748907073968,1.216,2605.4,2605.2,3.83839717]
[1748907074162,1.7628,2605.4,2605.0,3.83872624]
[1748907074397,0.04797833,2605.3,2604.9,3.83886817]
[1748907074600,0.04797833,2605.3,2604.9,3.83883946]
[1748907074808,0.04797833,2605.3,2604.7,0.15]
[1748907074972,0.04797833,2605.3,2604.9,3.8388317]
[1748907075166,0.65425616,2605.3,2605.0,3.83876746]
[1748907075368,0.60627783,2605.3,2605.1,3.83852545]
[1748907075562,1.216,2605.4,2605.1,3.83852545]
[1748907075769,1.216,2605.4,2605.0,3.83872794]
[1748907077115,1.216,2605.4,2605.1,3.8385533]
[1748907077408,0.5468,2605.3,2604.8,3.83893822]
[1748907077588,1.216,2605.4,2605.0,3.83865275]
[1748907077978,1.216,2605.4,2605.1,3.83860648]
[1748907078611,1.216,2605.4,2605.0,3.83871053]
[1748907078817,8.55,2605.6,2605.1,3.8385731]
[1748907079116,5.467,2605.5,2605.3,3.83819944]
[1748907079677,5.467,2605.5,2605.2,3.83841528]
[1748907079873,0.04798074,2605.4,2605.2,3.83841528]
[1748907080614,1.216,2605.5,2604.9,3.83889075]
[1748907080780,0.04798076,2605.6,2605.1,0.0633]
[1748907080981,5.467,2605.5,2605.4,3.83818223]
[1748907081178,5.467,2605.5,2605.3,3.83831931]
[1748907081585,5.467,2605.5,2605.4,3.83818223]
[1748907082814,1.84306,2605.5,2604.8,0.0633]
[1748907083142,0.7927,2605.3,2604.5,3.83940961]
[1748907083450,16.48606919,2605.5,2604.2,3.8398564]
[1748907083451,8.7927,2604.9,2604.2,3.8398564]
[1748907083738,8.0,2604.7,2604.1,0.02]
[1748907083889,1.2639987,2604.6,2604.2,3.83984549]
[1748907084325,1.2639987,2604.6,2604.1,3.86004258]
[1748907084891,1.2639987,2604.6,2604.2,3.83994451]
[1748907085092,8.0,2604.5,2604.2,3.83994451]
[1748907085311,4.251,2604.4,2604.1,3.86004838]
[1748907085517,4.251,2604.4,2604.2,3.83986134]
[1748907086030,4.251,2604.4,2604.1,3.86003065]
[1748907086333,4.29899875,2604.4,2604.1,3.86003065]
[1748907086534,5.79883009,2604.4,2604.1,0.02]
[1748907087031,5.79883009,2604.4,2604.1,3.86007252]
[1748907087630,0.8454,2604.3,2604.1,0.02]
[1748907087954,0.04800173,2604.2,2604.1,0.02]
[1748907088136,2.16354735,2604.8,2604.1,3.8600983]
[1748907088336,5.0964,2604.8,2604.1,0.0295023]
[1748907088531,5.0964,2604.8,2604.6,3.83927775]
[1748907088855,8.0,2604.8,2604.7,3.83921372]
[1748907089149,8.0,2604.8,2604.6,3.83926071]
[1748907089355,9.39469204,2604.8,2604.1,0.02]
[1748907089557,9.3467,2604.8,2604.6,3.83935765]
[1748907089959,9.3467,2604.8,2604.1,3.86953308]
[1748907090143,13.468,2604.9,2604.8,3.83906633]
[1748907090341,1.216,2604.9,2604.8,3.83906633]
[1748907090512,0.04798759,2605.1,2604.7,3.83916806]
[1748907090706,8.8368,2604.8,2604.2,3.83994455]
[1748907090902,8.0,2604.6,2604.5,3.83950854]
[1748907091103,2.0528,2605.3,2604.4,0.00949523]
[1748907091335,1.216,2605.3,2605.2,3.83847689]
[1748907091562,4.251,2605.6,2605.5,3.83788904]
[1748907091726,4.29897594,2605.6,2604.9,3.97001266]
[1748907091932,0.04797594,2605.6,2605.3,3.8382243]
[1748907092277,4.251,2605.5,2605.3,3.8382243]
[1748907092483,12.251,2605.5,2605.4,3.83818223]
[1748907093283,12.251,2605.5,2605.3,3.83827525]
[1748907093927,12.251,2605.5,2605.2,3.83842017]
[1748907094675,0.04797661,2605.4,2605.0,3.8386895]
[1748907095033,0.04797661,2605.4,2605.1,3.83859756]
[1748907095273,0.04797661,2605.4,2604.6,3.97051919]
[1748907095478,1.215,2605.4,2605.3,3.83832955]
[1748907095673,5.466,2605.4,2605.3,3.83832955]
[1748907096837,5.466,2605.4,2604.6,0.1312]
[1748907097071,5.466,2605.4,2605.3,3.83832955]
[1748907097450,8.29,2605.8,2605.2,0.00946441]
[1748907097758,8.29,2605.8,2605.6,3.83784535]
[1748907097942,9.74808,2605.8,2605.6,3.83784535]
[1748907098643,9.74808,2605.8,2605.7,3.83774033]
[1748907098845,8.29,2605.8,2605.2,3.66539531]
[1748907099385,8.29,2605.8,2605.1,0.1312]
[1748907099386,8.29,2605.8,2605.7,3.83774033]
[1748907099568,8.29,2605.8,2605.1,0.1312]
[1748907099774,12.541,2605.8,2605.7,3.83774033]
[1748907100085,8.29,2605.8,2605.7,3.83774033]
[1748907101390,9.74808,2605.8,2605.1,0.1312]
[1748907101594,8.29,2605.8,2605.2,3.83844635]
[1748907101953,8.29,2605.8,2605.7,3.83774033]
[1748907105361,12.25,2606.0,2605.9,3.83730419]
[1748907105560,12.25,2606.0,2605.8,3.83752451]
[1748907105798,12.25,2606.0,2605.9,3.83744579]
[1748907107874,12.25,2606.0,2605.4,3.8381192]
[1748907108076,12.25,2606.0,2605.8,3.83751012]
[1748907108982,1.215,2606.1,2606.0,3.83729854]
[1748907109165,5.464,2606.1,2606.0,3.83729854]
[1748907109724,5.464,2606.1,2605.9,3.83737936]
[1748907110061,1.215,2606.1,2605.9,3.83737936]
[1748907110299,4.249,2606.0,2605.9,3.83737936]
[1748907113201,4.249,2606.0,2605.8,3.83757463]
[1748907113400,4.249,2606.0,2605.9,3.83744579]
[1748907114015,4.7954,2606.0,2605.6,3.8377422]
[1748907114308,4.7954,2606.0,2605.7,3.83767411]
[1748907115995,0.35967185,2605.9,2605.7,3.83767411]
[1748907116195,4.84336874,2606.0,2605.7,3.83767411]
[1748907116514,0.3596748,2605.9,2605.7,3.83767411]
[1748907116680,4.84336874,2606.0,2605.7,3.83767411]
[1748907117310,4.7954,2606.0,2605.8,3.83759306]
[1748907117606,12.249,2606.0,2605.4,3.838152]
[1748907117816,12.249,2606.0,2605.8,3.8374884]
[1748907118024,12.249,2606.0,2605.6,3.83775683]
[1748907118190,13.5954,2606.0,2605.6,3.83775683]
[1748907118387,13.5954,2606.0,2605.8,3.83759179]
[1748907119391,13.5954,2606.0,2605.5,3.83793]
[1748907119625,0.04796882,2605.9,2605.4,3.83818223]
[1748907119831,1.5338057,2605.9,2605.5,3.83803492]
[1748907120187,1.5338057,2605.9,2605.4,3.83814494]